bitfinex/quotes_SOLUSD_20250310
["timestamp","ask_amount","ask_price","bid_price","bid_amount"]
[1741589423143,0.03,127.63,127.62,566.13701964]
[1741589424015,0.03,127.63,127.62,254.13701964]
[1741589424212,0.03,127.63,127.62,235.48737078]
[1741589424649,0.03,127.63,127.62,254.13701964]
[1741589427028,0.03,127.63,127.62,235.48737078]
[1741589427215,0.03,127.63,127.62,254.13701964]
[1741589427842,0.03,127.63,127.62,235.48737078]
[1741589429448,0.03,127.63,127.62,254.13701964]
[1741589430027,0.03,127.63,127.62,235.48737078]
[1741589432150,0.03,127.63,127.62,254.13701964]
[1741589433035,0.03,127.63,127.62,566.13701964]
[1741589437141,0.03,127.63,127.62,570.14698617]
[1741589437857,0.03,127.63,127.62,566.13701964]
[1741589438253,0.03,127.63,127.62,235.48737078]
[1741589439128,0.03,127.63,127.62,235.55037078]
[1741589439853,0.03,127.63,127.62,254.20001964]
[1741589442528,0.03,127.63,127.62,235.55037078]
[1741589442733,0.03,127.63,127.62,224.7082]
[1741589442937,0.03,127.63,127.62,235.55037078]
[1741589443241,0.03,127.63,127.62,216.8725]
[1741589443448,10.87217078,127.63,127.62,81.4725]
[1741589444052,11.15649392,127.63,127.62,81.4725]
[1741589444556,18.84943235,127.63,127.62,81.4725]
[1741589445152,18.99159392,127.63,127.62,81.4725]
[1741589446755,11.15649392,127.63,127.62,0.063]
[1741589448041,0.17216157,127.63,127.62,0.063]
[1741589448541,0.03,127.63,127.62,6.943]
[1741589452064,11.01433235,127.63,127.62,6.943]
[1741589452843,18.84943235,127.63,127.62,6.943]
[1741589453051,18.84943235,127.63,127.62,0.063]
[1741589454467,18.99159392,127.63,127.62,0.063]
[1741589457859,8.14942314,127.63,127.62,0.063]
[1741589458066,18.99159392,127.63,127.62,0.063]
[1741589458263,11.15649392,127.63,127.62,0.063]
[1741589458661,0.17216157,127.63,127.62,0.063]
[1741589458874,0.03,127.63,127.62,0.063]
[1741589467064,11.15649392,127.63,127.62,0.063]
[1741589467465,18.99159392,127.63,127.62,0.063]
[1741589468078,18.84943235,127.63,127.62,0.063]
[1741589468483,18.99159392,127.63,127.62,0.063]
[1741589472670,0.17216157,127.63,127.62,0.063]
[1741589472870,0.03,127.63,127.62,0.063]
[1741589475504,0.03,127.63,127.62,216.8725]
[1741589476686,0.17216157,127.63,127.62,216.8725]
[1741589477705,0.03,127.63,127.62,216.8725]
[1741589479487,0.03,127.63,127.62,81.4725]
[1741589480305,0.28432314,127.62,127.61,0.063]
[1741589480598,73.1448259,127.62,127.54,0.063]
[1741589480795,0.14216157,127.55,127.54,216.8725]
[1741589480997,0.14216157,127.56,127.54,81.4725]
[1741589481305,0.14216157,127.57,127.54,81.4725]
[1741589482597,10.98433235,127.57,127.54,81.4725]
[1741589483001,0.14216157,127.57,127.54,81.4725]
[1741589483310,10.98433235,127.57,127.54,81.4725]
[1741589483813,0.28432314,127.59,127.54,90.8419]
[1741589484016,0.14216157,127.57,127.54,226.2419]
[1741589484398,0.14216157,127.56,127.54,216.8725]
[1741589484616,10.98433235,127.56,127.54,81.4725]
[1741589484921,0.14216157,127.56,127.54,81.4725]
[1741589487008,10.84217078,127.57,127.54,89.3131]
[1741589487316,0.14216157,127.58,127.54,100.15527078]
[1741589487501,10.98433235,127.58,127.54,89.3131]
[1741589487813,0.14216157,127.6,127.54,89.3131]
[1741589488008,10.84217078,127.58,127.54,224.7131]
[1741589488787,0.14216157,127.6,127.55,6.88]
[1741589489012,10.98433235,127.62,127.58,20.0]
[1741589489314,10.98433235,127.62,127.59,7.8376]
[1741589489992,0.03,127.63,127.6,10.84217078]
[1741589490195,0.03,127.63,127.6,227.65167078]
[1741589491022,0.03,127.63,127.6,216.8095]
[1741589491326,10.84217078,127.62,127.6,216.8095]
[1741589492426,16.81361491,127.62,127.6,216.8095]
[1741589492604,0.14216157,127.62,127.6,216.8095]
[1741589493316,0.03,127.63,127.6,224.6464]
[1741589493625,0.03,127.63,127.6,241.46001491]
[1741589493921,0.03,127.63,127.62,20.0]
[1741589494094,0.03,127.63,127.62,236.8095]
[1741589499419,0.03,127.63,127.62,216.8095]
[1741589500515,0.03,127.63,127.62,224.6452]
[1741589502825,0.03,127.63,127.62,260.10846377]
[1741589503019,0.03,127.63,127.62,261.67036377]
[1741589503800,0.03,127.63,127.62,573.67036377]
[1741589504222,0.03,127.63,127.62,528.8095]
[1741589504427,0.03,127.63,127.62,216.8095]
[1741589508232,0.03,127.63,127.62,224.6452]
[1741589509631,0.03,127.63,127.62,241.45881491]
[1741589509931,0.03,127.63,127.62,230.506373]
[1741589510812,0.03,127.63,127.62,265.96963677]
[1741589512953,0.03,127.63,127.62,267.49673677]
[1741589512954,0.0001,127.63,127.62,267.49673677]
[1741589513443,0.0001,127.63,127.62,579.49673677]
[1741589514239,0.0001,127.63,127.62,573.43392524]
[1741589515142,0.03,127.64,127.63,100.05904886]
[1741589515342,0.03,127.64,127.63,118.64495224]
[1741589516735,0.03,127.64,127.63,254.04495224]
[1741589519149,0.0001,127.65,127.64,24.88991043]
[1741589519452,0.03,127.67,127.66,20.0]
[1741589519647,0.03,127.67,127.66,56.28045224]
[1741589520325,0.03,127.67,127.66,64.11375224]
[1741589521347,0.03,127.68,127.67,20.30794886]
[1741589521550,0.03,127.68,127.67,31.05875224]
[1741589521964,0.03,127.68,127.67,12.40910338]
[1741589522271,0.03,127.68,127.67,324.40910338]
[1741589522428,0.03,127.68,127.67,332.24170338]
[1741589522635,0.03,127.68,127.67,350.89135224]
[1741589524160,0.03,127.71,127.7,20.0]
[1741589524332,0.03,127.71,127.7,262.24100338]
[1741589524535,0.03,127.71,127.7,280.89065224]
[1741589524748,0.5,127.73,127.71,18.64964886]
[1741589524927,0.5,127.73,127.72,10.75080338]
[1741589526231,0.5,127.73,127.72,7.8296]
[1741589526546,0.14216157,127.72,127.7,223.6594]
[1741589526739,10.89296495,127.72,127.7,223.6594]
[1741589527930,10.75080338,127.72,127.7,223.6594]
[1741589528134,10.75080338,127.72,127.7,216.7794]
[1741589528339,16.78616688,127.72,127.7,216.7794]
[1741589530037,17.42832845,127.73,127.7,216.7794]
[1741589531053,0.5,127.73,127.7,241.39636688]
[1741589531251,0.5,127.73,127.71,16.78616688]
[1741589531957,0.5,127.73,127.72,16.78616688]
[1741589533157,0.5,127.73,127.72,44.89831574]
[1741589533456,0.5,127.73,127.72,46.07211363]
[1741589533658,0.53,127.73,127.72,44.89831574]
[1741589533868,0.53,127.73,127.72,7.8296]
[1741589534056,0.53,127.73,127.71,224.6094]
[1741589535987,0.53,127.73,127.71,81.3794]
[1741589536146,16.78616688,127.72,127.71,81.3794]
[1741589536476,0.14216157,127.72,127.71,81.3794]
[1741589537036,16.92832845,127.72,127.71,81.3794]
[1741589537462,0.53,127.73,127.71,81.3794]
[1741589538837,0.53,127.73,127.71,89.2095]
[1741589539055,0.53,127.73,127.71,112.85566688]
[1741589539275,0.53,127.73,127.71,248.25566688]
[1741589541078,0.53,127.73,127.72,16.78616688]
[1741589541272,0.53,127.73,127.71,249.84246688]
[1741589541441,0.53,127.73,127.72,312.0]
[1741589542858,0.53,127.73,127.72,328.78616688]
[1741589543341,0.53,127.73,127.72,336.61576688]
[1741589543540,0.53,127.73,127.72,319.8296]
[1741589543865,0.53,127.73,127.72,536.609]
[1741589544170,0.53,127.73,127.72,572.04481574]
[1741589544359,0.53,127.73,127.72,260.04481574]
[1741589547346,0.53,127.73,127.72,572.04481574]
[1741589547666,0.53,127.73,127.72,758.54481574]
[1741589552141,0.03,127.76,127.75,20.0]
[1741589552350,0.03,127.76,127.75,243.6394]
[1741589553266,0.03,127.76,127.75,251.4671]
[1741589553663,0.20216157,127.8,127.75,251.4671]
[1741589553871,16.78616688,127.79,127.75,251.4671]
[1741589555566,16.78616688,127.79,127.75,563.4671]
[1741589556055,16.98832845,127.8,127.75,251.4671]
[1741589556258,16.98832845,127.8,127.75,287.82266688]
[1741589559052,16.98832845,127.8,127.75,599.82266688]
[1741589559757,0.06,127.8,127.76,35.43581574]
[1741589561451,0.06,127.8,127.77,7.8265]
[1741589563276,16.84616688,127.8,127.77,7.8265]
[1741589564173,16.84616688,127.8,127.76,16.78616688]
[1741589564374,10.87213653,127.79,127.76,7.8269]
[1741589564576,10.72997496,127.78,127.75,216.7794]
[1741589564778,10.87213653,127.78,127.77,6.86]
[1741589566081,0.14216157,127.78,127.77,6.86]
[1741589568064,10.78997496,127.8,127.77,14.6865]
[1741589569274,0.06,127.8,127.77,14.6865]
[1741589569669,10.78997496,127.8,127.77,14.6865]
[1741589571567,10.78997496,127.8,127.77,231.4659]
[1741589571770,10.78997496,127.8,127.77,231.5289]
[1741589572985,10.75997496,127.8,127.77,231.5289]
[1741589574983,0.03,127.8,127.77,231.5289]
[1741589576364,0.14216157,127.79,127.77,223.7024]
[1741589576561,10.72997496,127.79,127.77,88.3024]
[1741589576977,0.14216157,127.78,127.77,88.3024]
[1741589577486,0.14216157,127.78,127.77,81.4424]
[1741589577666,11.0142981,127.78,127.77,0.063]
[1741589579384,18.8401981,127.78,127.77,0.063]
[1741589579590,18.69803653,127.78,127.77,0.063]
[1741589580368,11.0142981,127.78,127.77,0.063]
[1741589581567,18.8401981,127.78,127.77,0.063]
[1741589586674,11.0142981,127.78,127.77,0.063]
[1741589587392,18.8401981,127.78,127.77,0.063]
[1741589588382,11.0142981,127.78,127.77,0.063]
[1741589591493,18.8401981,127.78,127.77,0.063]
[1741589594010,18.933972,127.77,127.75,1.0]
[1741589594178,10.72997496,127.76,127.75,1.0]
[1741589594377,11.0142981,127.76,127.75,1.0]
[1741589594582,72.5838468,127.76,127.75,1.0]
[1741589594802,0.28432314,127.75,127.72,0.063]
[1741589595006,11.0142981,127.73,127.72,0.063]
[1741589595792,18.8432981,127.73,127.72,0.063]
[1741589596887,11.0142981,127.73,127.72,0.063]
[1741589597306,10.87213653,127.73,127.72,0.063]
[1741589598516,0.14216157,127.73,127.72,0.063]
[1741589600485,10.87213653,127.73,127.72,0.063]
[1741589603406,11.0142981,127.73,127.72,0.063]
[1741589603717,18.8432981,127.73,127.72,0.063]
[1741589606517,0.28432314,127.72,127.71,0.063]
[1741589606729,11.0142981,127.72,127.71,0.063]
[1741589607695,18.8438981,127.72,127.71,0.063]
[1741589608727,10.87213653,127.72,127.71,0.063]
[1741589608924,0.14216157,127.72,127.71,0.063]
[1741589609103,0.14216157,127.73,127.71,0.063]
[1741589609908,10.72997496,127.74,127.71,0.063]
[1741589610112,0.14216157,127.73,127.71,7.8932]
[1741589610511,10.72997496,127.74,127.71,7.8932]
[1741589612717,10.72997496,127.73,127.71,0.063]
[1741589614424,0.14216157,127.72,127.71,0.063]
[1741589614615,10.87213653,127.72,127.71,0.063]
[1741589617749,11.0142981,127.72,127.71,0.063]
[1741589617914,18.8438981,127.72,127.71,0.063]
[1741589618533,11.0142981,127.72,127.71,0.063]
[1741589622431,18.8438981,127.72,127.71,0.063]
[1741589624015,0.28432314,127.71,127.66,0.063]
[1741589624228,10.87213653,127.67,127.66,0.063]
[1741589625439,0.14216157,127.67,127.66,0.063]
[1741589627430,10.87213653,127.67,127.66,0.063]
[1741589628148,0.14216157,127.67,127.66,0.063]
[1741589629274,0.14216157,127.67,127.66,20.063]
[1741589629551,0.14216157,127.67,127.66,27.8963]
[1741589630352,0.14216157,127.67,127.66,20.063]
[1741589630522,0.14216157,127.67,127.66,0.063]
[1741589630724,0.14216157,127.67,127.66,7.8963]
[1741589630920,10.72997496,127.69,127.66,7.8963]
[1741589631147,0.14216157,127.68,127.66,7.8963]
[1741589631347,0.14216157,127.68,127.66,0.063]
[1741589633769,0.14216157,127.67,127.66,0.063]
[1741589634658,16.9386264,127.67,127.66,0.063]
[1741589636571,0.14216157,127.67,127.66,0.063]
[1741589636781,16.9386264,127.67,127.66,0.063]
[1741589637348,16.9386264,127.68,127.66,0.063]
[1741589637581,16.79646483,127.67,127.66,0.063]
[1741589641378,0.14216157,127.67,127.66,0.063]
[1741589641577,14.87293432,127.68,127.66,0.063]
[1741589642675,16.79646483,127.67,127.66,0.063]
[1741589643493,16.9386264,127.67,127.66,0.063]
[1741589645981,24.91338797,127.67,127.66,0.063]
[1741589648455,17.08078797,127.67,127.66,0.063]
[1741589649171,24.91338797,127.67,127.66,0.063]
[1741589651669,17.08078797,127.67,127.66,0.063]
[1741589651871,24.91338797,127.67,127.66,0.063]
[1741589652275,18.87198138,127.67,127.66,0.063]
[1741589653282,8.11772314,127.66,127.61,1.5726]
[1741589653481,0.14216157,127.61,127.6,0.063]
[1741589654484,10.89721981,127.61,127.6,0.063]
[1741589655474,11.03938138,127.61,127.6,0.063]
[1741589655684,18.87568138,127.61,127.6,0.063]
[1741589655880,11.03938138,127.61,127.6,0.063]
[1741589659782,10.89721981,127.61,127.6,0.063]
[1741589659982,11.03938138,127.61,127.6,0.063]
[1741589661189,0.28432314,127.61,127.6,0.063]
[1741589661382,11.03938138,127.61,127.6,0.063]
[1741589662377,18.87568138,127.61,127.6,0.063]
[1741589664886,37.52533024,127.61,127.6,0.063]
[1741589668601,18.933972,127.6,127.59,0.063]
[1741589668799,29.68903024,127.6,127.59,0.063]
[1741589669199,11.03938138,127.6,127.59,0.063]
[1741589669398,10.75505824,127.61,127.59,0.063]
[1741589669579,0.14216157,127.6,127.59,0.063]
[1741589669775,11.03938138,127.6,127.59,0.063]
[1741589670796,18.87628138,127.6,127.59,0.063]
[1741589672214,11.03938138,127.6,127.59,0.063]
[1741589673581,0.28432314,127.6,127.59,0.063]
[1741589673903,11.03938138,127.6,127.59,0.063]
[1741589674606,0.28432314,127.6,127.59,0.063]
[1741589674793,11.03938138,127.6,127.59,0.063]
[1741589675184,0.28432314,127.6,127.59,0.063]
[1741589675514,11.03938138,127.6,127.59,0.063]
[1741589676022,10.89721981,127.6,127.59,0.063]
[1741589676408,11.03938138,127.6,127.59,0.063]
[1741589679393,10.89721981,127.6,127.59,0.063]
[1741589679914,11.03938138,127.6,127.59,0.063]
[1741589680906,11.03938138,127.6,127.59,5.924633]
[1741589692416,10.89721981,127.6,127.59,5.924633]
[1741589692614,0.17216157,127.6,127.59,5.924633]
[1741589693194,0.03,127.6,127.59,5.924633]
[1741589693412,0.03,127.6,127.59,13.762233]
[1741589706101,0.03,127.6,127.59,24.51729124]
[1741589707227,0.03,127.6,127.59,5.924633]
[1741589707725,0.03,127.6,127.59,13.762233]
[1741589710041,0.03,127.6,127.59,24.51729124]
[1741589710238,0.03,127.6,127.59,43.1669401]
[1741589710428,0.03,127.6,127.59,49.2487401]
[1741589710931,0.03,127.61,127.6,18.64964886]
[1741589711227,0.03,127.61,127.6,29.4047071]
[1741589711628,0.03,127.61,127.6,37.2416071]
[1741589714449,0.03,127.61,127.6,254.0210071]
[1741589714938,0.14216157,127.67,127.63,30.75505824]
[1741589715123,0.14216157,127.67,127.63,37.61505824]
[1741589715535,0.17216157,127.68,127.64,10.75505824]
[1741589716223,0.17216157,127.68,127.65,7.8339]
[1741589717626,0.03,127.68,127.65,18.58895824]
[1741589718735,0.03,127.68,127.65,10.75505824]
[1741589718936,0.03,127.68,127.64,18.58935824]
[1741589719728,0.14216157,127.67,127.63,243.6394]
[1741589719923,0.14216157,127.67,127.63,262.22935824]
[1741589720335,0.03,127.68,127.64,10.75505824]
[1741589720527,0.17216157,127.68,127.64,10.75505824]
[1741589721132,0.17216157,127.68,127.63,574.22935824]
[1741589722743,0.17216157,127.68,127.63,262.22935824]
[1741589723144,0.17216157,127.68,127.64,10.75505824]
[1741589723849,0.17216157,127.68,127.65,7.8339]
[1741589726540,0.17216157,127.68,127.65,18.58895824]
[1741589727257,0.17216157,127.68,127.65,7.8339]
[1741589727644,0.03,127.68,127.65,18.58895824]
[1741589727835,0.03,127.68,127.66,10.75505824]
[1741589728039,0.03,127.68,127.67,7.8326]
[1741589729134,0.03,127.68,127.65,18.58895824]
[1741589732134,0.03,127.68,127.65,235.36835824]
[1741589734545,0.03,127.68,127.65,227.53445824]
[1741589735059,0.03,127.68,127.65,235.36835824]
[1741589738376,0.03,127.68,127.66,18.58805824]
[1741589738669,0.03,127.68,127.67,17.61505824]
[1741589739944,0.03,127.71,127.67,63.6790071]
[1741589740149,0.03,127.71,127.69,10.75505824]
[1741589740363,0.03,127.71,127.7,10.75505824]
[1741589742051,0.03,127.71,127.7,18.58585824]
[1741589743260,0.03,127.71,127.7,7.8308]
[1741589743754,0.03,127.71,127.69,18.58625824]
[1741589743961,0.03,127.71,127.7,10.75505824]
[1741589746149,0.03,127.71,127.7,18.58585824]
[1741589749962,0.03,127.71,127.7,235.36525824]
[1741589761669,0.03,127.71,127.7,99.96525824]
[1741589763076,0.03,127.71,127.7,118.6149071]
[1741589763277,0.03,127.73,127.71,18.64964886]
[1741589763474,0.03,127.73,127.72,17.61505824]
[1741589764888,0.03,127.73,127.72,25.44465824]
[1741589770599,0.03,127.73,127.72,242.22405824]
[1741589773888,0.03,127.73,127.72,260.8737071]
[1741589776974,0.03,127.73,127.72,223.6394]
[1741589777807,0.03,127.73,127.72,223.6194]
[1741589782605,0.03,127.73,127.72,6.84]
[1741589783709,0.03,127.73,127.7,0.063]
[1741589784022,10.78505824,127.73,127.7,0.063]
[1741589784195,0.17216157,127.73,127.7,18.64885824]
[1741589785291,0.17216157,127.73,127.7,25.48885824]
[1741589785490,0.03,127.73,127.7,25.48885824]
[1741589786930,0.03,127.73,127.7,337.48885824]
[1741589787814,0.03,127.73,127.7,329.65805824]
[1741589788003,0.17216157,127.73,127.7,6.903]
[1741589788315,10.92721981,127.73,127.7,6.903]
[1741589789414,10.92721981,127.73,127.7,0.063]
[1741589790310,18.75641981,127.73,127.7,0.063]
[1741589790522,0.17216157,127.73,127.7,0.063]
[1741589793021,0.17216157,127.73,127.7,10.81805824]
[1741589793225,0.03,127.73,127.7,10.81805824]
[1741589794414,0.03,127.73,127.7,0.063]
[1741589799746,0.03,127.73,127.7,5.920501]
[1741589800033,0.03,127.73,127.7,13.751201]
[1741589801036,0.03,127.73,127.7,5.920501]
[1741589802153,0.03,127.73,127.7,13.751301]
[1741589803920,0.03,127.73,127.7,5.920501]
[1741589804534,0.17216157,127.73,127.7,5.920501]
[1741589804733,10.92721981,127.73,127.7,5.920501]
[1741589805311,0.14216157,127.72,127.7,5.920501]
[1741589806838,18.72681981,127.72,127.7,5.920501]
[1741589808337,10.89721981,127.72,127.7,5.920501]
[1741589809630,10.75505824,127.72,127.7,5.920501]
[1741589811029,0.17216157,127.73,127.7,13.751101]
[1741589811239,0.17216157,127.73,127.7,24.50615924]
[1741589812242,0.17216157,127.73,127.7,13.751101]
[1741589812441,0.03,127.73,127.7,24.50615924]
[1741589812647,0.03,127.73,127.72,10.75505824]
[1741589814764,0.03,127.73,127.72,18.58465824]
[1741589820250,0.03,127.73,127.7,222.699901]
[1741589820251,0.17216157,127.73,127.7,222.699901]
[1741589820873,0.03,127.73,127.7,222.699901]
[1741589821071,0.17216157,127.73,127.7,222.699901]
[1741589821245,0.17216157,127.73,127.7,87.299901]
[1741589821780,0.17216157,127.73,127.7,105.88565924]
[1741589823986,0.03,127.73,127.7,105.88565924]
[1741589824283,0.03,127.73,127.71,10.75505824]
[1741589825074,0.03,127.73,127.71,18.58485824]
[1741589825271,0.03,127.73,127.72,10.75505824]
[1741589827259,0.03,127.73,127.72,18.58465824]
[1741589827662,0.03,127.73,127.71,235.36425824]
[1741589829278,0.03,127.73,127.72,10.75505824]
[1741589830261,0.03,127.73,127.71,235.36425824]
[1741589831386,0.03,127.73,127.72,10.75505824]
[1741589833080,0.03,127.73,127.72,18.58465824]
[1741589835290,0.03,127.73,127.72,7.8296]
[1741589836487,0.03,127.73,127.71,81.3794]
[1741589836785,0.03,127.73,127.72,6.84]
[1741589837194,0.03,127.73,127.72,17.59505824]
[1741589837494,0.03,127.73,127.72,6.84]
[1741589838890,0.03,127.73,127.72,14.6696]
[1741589842177,0.03,127.73,127.72,6.84]
[1741589843077,0.03,127.73,127.72,25.42465824]
[1741589845679,0.03,127.73,127.72,14.6696]
[1741589846276,0.03,127.73,127.72,25.42465824]
[1741589848671,0.03,127.73,127.72,14.6696]
[1741589849213,0.03,127.73,127.72,6.84]
[1741589851209,0.03,127.73,127.72,14.6696]
[1741589851383,0.03,127.73,127.72,25.42465824]
[1741589856011,0.03,127.74,127.72,262.55966867]
[1741589856200,0.03,127.74,127.73,10.75505824]
[1741589856511,0.03,127.74,127.73,322.75505824]
[1741589857010,0.0001,127.74,127.73,539.53445824]
[1741589857210,0.0001,127.74,127.73,558.1841071]
[1741589858219,0.0001,127.74,127.73,566.0131071]
[1741589865210,0.06,127.8,127.77,20.0]
[1741589865414,0.06,127.8,127.78,17.59505824]
[1741589866026,0.06,127.8,127.79,7.8253]
[1741589869322,0.06,127.8,127.78,25.42075824]
[1741589870532,0.06,127.8,127.78,6.84]
[1741589870723,0.14216157,127.79,127.77,216.7794]
[1741589871115,0.14216157,127.79,127.76,6.84]
[1741589871631,0.20216157,127.8,127.77,30.75505824]
[1741589873031,0.06,127.8,127.77,30.75505824]
[1741589873329,0.06,127.8,127.77,38.58105824]
[1741589873529,0.06,127.8,127.78,10.75505824]
[1741589875809,0.06,127.8,127.79,7.8253]
[1741589881356,0.06,127.8,127.79,18.58035824]
[1741589890183,0.06,127.8,127.79,37.2300071]
[1741589890352,0.03,127.81,127.79,37.2300071]
[1741589890675,0.03,127.81,127.8,17.59505824]
[1741589891670,0.03,127.81,127.8,6.84]
[1741589892878,0.03,127.81,127.8,25.41975824]
[1741589893059,0.03,127.81,127.8,44.0694071]
[1741589893257,0.03,127.81,127.8,260.8488071]
[1741589893746,0.0001,127.81,127.8,260.8488071]
[1741589895365,8.35e-05,127.82,127.81,18.64964886]
[1741589895553,8.35e-05,127.82,127.81,29.4047071]
[1741589897766,8.35e-05,127.82,127.81,341.4047071]
[1741589897973,8.35e-05,127.82,127.81,349.2288071]
[1741589898468,8.35e-05,127.82,127.81,566.0082071]
[1741589900970,8.35e-05,127.82,127.81,216.7794]
[1741589901270,8.35e-05,127.82,127.81,6.84]
[1741589902847,8.35e-05,127.82,127.81,17.59505824]
[1741589903258,8.35e-05,127.82,127.81,25.41915824]
[1741589903677,8.35e-05,127.82,127.81,14.6641]
[1741589904180,8.35e-05,127.82,127.81,6.84]
[1741589905271,8.35e-05,127.82,127.81,14.6641]
[1741589906156,0.0300835,127.82,127.81,14.6641]
[1741589908852,0.0300835,127.82,127.81,6.84]
[1741589909271,0.0300835,127.82,127.81,14.6641]
[1741589909884,0.0300835,127.82,127.81,44.0688071]
[1741589910054,0.0300835,127.82,127.81,125.4482071]
[1741589910757,8.35e-05,127.82,127.81,125.4482071]
[1741589910963,8.35e-05,127.82,127.81,179.4688071]
[1741589911179,8.35e-05,127.82,127.81,491.4688071]
[1741589912881,8.35e-05,127.82,127.81,179.4688071]
[1741589915086,8.35e-05,127.82,127.81,261.11096867]
[1741589915773,8.35e-05,127.82,127.81,573.11096867]
[1741589916174,8.35e-05,127.82,127.81,261.11096867]
[1741589917165,8.35e-05,127.84,127.82,18.64964886]
[1741589917488,8.35e-05,127.84,127.83,10.75505824]
[1741589918479,8.35e-05,127.85,127.84,38.64964886]
[1741589919263,8.35e-05,127.85,127.84,350.64964886]
[1741589920079,8.35e-05,127.85,127.84,361.4047071]
[1741589920459,8.35e-05,127.85,127.84,376.0469071]
[1741589921069,8.35e-05,127.85,127.84,45.39725824]
[1741589921283,8.35e-05,127.85,127.84,34.6422]
[1741589921671,8.35e-05,127.85,127.84,45.39725824]
[1741589922090,8.35e-05,127.85,127.84,64.0469071]
[1741589922277,8.35e-05,127.85,127.84,280.9469071]
[1741589924081,8.35e-05,127.85,127.84,592.9469071]
[1741589924461,8.35e-05,127.85,127.84,280.9469071]
[1741589927389,8.35e-05,127.85,127.84,592.9469071]
[1741589930587,8.35e-05,127.85,127.84,593.0099071]
[1741589935491,8.35e-05,127.85,127.84,251.6052]
[1741589935993,8.35e-05,127.85,127.84,262.36025824]
[1741589938275,8.35e-05,127.85,127.84,251.6052]
[1741589938474,8.35e-05,127.85,127.84,563.6052]
[1741589939189,8.35e-05,127.85,127.84,251.6052]
[1741589939585,8.35e-05,127.85,127.84,262.36025824]
[1741589939967,8.35e-05,127.85,127.84,45.46025824]
[1741589940570,8.35e-05,127.85,127.84,34.7052]
[1741589943413,8.35e-05,127.85,127.84,6.883]
[1741589943707,0.14224507,127.85,127.84,6.883]
[1741589944077,0.14224507,127.85,127.84,0.063]
[1741589944498,8.35e-05,127.85,127.84,0.063]
[1741589947891,8.35e-05,127.85,127.84,10.81805824]
[1741589949903,8.35e-05,127.85,127.84,18.64025824]
[1741589951206,8.35e-05,127.85,127.84,330.64025824]
[1741589952183,8.35e-05,127.85,127.84,18.64025824]
[1741589952595,8.35e-05,127.85,127.84,7.8852]
[1741589952807,8.35e-05,127.85,127.84,14.7052]
[1741589954514,8.35e-05,127.85,127.84,0.063]
[1741589955203,0.14224507,127.85,127.84,0.063]
[1741589955787,10.89730331,127.85,127.84,0.063]
[1741589956611,18.86106488,127.85,127.84,0.063]
[1741589957706,37.51071374,127.85,127.84,0.063]
[1741589957912,45.43311374,127.85,127.84,0.063]
[1741589960810,127.83311374,127.85,127.84,0.063]
[1741589984346,109.18346488,127.85,127.84,0.063]
[1741589984946,127.83311374,127.85,127.84,0.063]
[1741589985150,20.28432314,127.82,127.81,0.063]
[1741589985336,31.03938138,127.82,127.81,0.063]
[1741589987043,38.86288138,127.82,127.81,0.063]
[1741589989145,30.89721981,127.82,127.81,0.063]
[1741589989537,10.89721981,127.82,127.81,0.063]
[1741589990451,0.14216157,127.82,127.81,0.063]
[1741589995743,0.14216157,127.82,127.81,7.8871]
[1741590001073,8.35e-05,127.85,127.81,7.8871]
[1741590001249,8.35e-05,127.85,127.83,10.75505824]
[1741590001452,8.35e-05,127.85,127.82,10.75505824]
[1741590001658,0.14216157,127.84,127.81,7.8871]
[1741590001955,0.14216157,127.84,127.81,18.64215824]
[1741590002149,8.35e-05,127.85,127.82,10.75505824]
[1741590002359,8.35e-05,127.85,127.84,10.75505824]
[1741590002661,8.35e-05,127.85,127.84,17.57505824]
[1741590003043,8.35e-05,127.85,127.84,25.39725824]